[Event "Oceania Zonal Open 2023"]
[Site "Melbourne"]
[Date "2023.01.25"]
[Round "5.10"]
[White "Croad, Nicolas"]
[Black "Lee, Lachlan"]
[Result "1/2-1/2"]
[ECO "D36"]
[WhiteElo "2218"]
[BlackElo "1910"]
[Annotator "TA"]
[PlyCount "64"]
[EventDate "2023.01.09"]
[EventType "swiss"]
[EventCountry "AUS"]
[SourceTitle "playchess.com"]
[Source "ChessBase"]
[SourceQuality "1"]
[TimeControl "5400+30"]

{[%evp 22,64,17,8,22,-19,0,0,0,-19,-30,-33,-20,-40,11,11,11,15,8,15,72,70,85,77,82,80,80,80,77,67,73,8,8,8,8,8,8,0,0,0,0,0,0,0,0]} 1. d4 {[%emt 0:00:45]} d5 {[%emt 0:00:10]} 2. c4 {[%emt 0:00:08]} e6 {[%emt 0:00:07]} 3. Nc3 {[%emt 0:00:07]} Nf6 {[%emt 0:00:06]} 4. cxd5 {[%emt 0:00:07]} exd5 {[%emt 0:00:09]} 5. Bg5 {[%emt 0:00:09]} c6 {[%emt 0:00:07]} 6. e3 {[%emt 0:00:08]} Be7 {[%emt 0:00:07]} 7. Bd3 {[%emt 0:00:08]} O-O {[%emt 0:00:27]} 8. Qc2 {[%emt 0:00:12]} Nbd7 {[%emt 0:00:07]} 9. Nge2 {[%emt 0:00:22]} Re8 {[%emt 0:00:33]} 10. O-O {[%emt 0:00:28]} Nf8 {[%emt 0:01:56]} 11. Rab1 {[%emt 0:02:07]} a5 {[%emt 0:01:53]} 12. a3 {[%emt 0:00:26]} g6 {[%emt 0:00:41] D36: Queen's Gambit Declined: Exchange Variation: Main line (5 Bg5 c6 6 Qc2).} 13. b4 {[%emt 0:02:25]} axb4 {[%emt 0:01:05]} (13... Ne6 $5 {[%cal Re6g5]} 14. Bh4 b5 $11) 14. axb4 {[%emt 0:00:05]} b5 {[%emt 0:01:42]} 15. Bxf6 {[%emt 0:09:34]} Bxf6 {[%emt 0:00:12] [#]} 16. e4 $146 {[%emt 0:00:11]} ({Predecessor:} 16. Nc1 Nd7 17. Nb3 Nb6 18. Na5 Bd7 19. Ne2 Nc4 20. Bxc4 bxc4 21. Qc3 Qe7 22. Ng3 {0-1 Da Paz,L (2033)-Hrabinska,M (2235) Titled Tuesday intern op 23rd Feb blitz 2021 (6)}) 16... dxe4 {[%emt 0:06:26]} 17. Nxe4 {[%emt 0:00:17]} Bxd4 {[%emt 0:06:49]} (17... Bd7 $15) 18. Nxd4 $11 {[%emt 0:02:05]} (18. Qxc6 Bd7 19. Qd5 Bg7 $15) 18... Qxd4 {[%emt 0:00:23]} 19. Qxc6 {[%emt 0:01:13]} Be6 $1 {[%emt 0:23:47]} 20. Rfd1 {[%emt 0:01:11]} (20. Bxb5 $2 Rec8 21. Rfd1 Qe5 $19) (20. Qxb5 Reb8 21. Qg5 Qxd3 $17) 20... Rec8 {[%emt 0:00:52]} (20... Rac8 $11 21. Qa6 (21. Qxb5 Bg4 $11) (21. Bxb5 Qe5 $15) 21... Red8) 21. Qd6 $1 $16 {[%emt 0:01:08]} ({Don't go for} 21. Bxb5 $2 Qe5 22. Qd6 (22. Qb7 $2 Rab8 $19 {[%mdl 64] Skewer, Deflection}) 22... Qxe4 $19) 21... Rd8 {[%emt 0:01:23] [#]} 22. Qxd4 {[%emt 0:04:45]} Rxd4 {[%emt 0:00:09]} 23. Bxb5 {[%emt 0:00:26]} Rxd1+ {[%emt 0:07:16]} (23... Rxe4 $2 24. Bc6 $18) 24. Rxd1 {[%emt 0:00:06]} Bb3 {[%emt 0:00:38]} 25. Re1 {[%emt 0:03:37] White is more active.} Rb8 {[%emt 0:01:16] [#]} 26. Nc3 {[%emt 0:10:56]} (26. Re3 $1 $16) 26... Ne6 $11 {[%emt 0:00:55] The position is equal.} 27. f3 {[%emt 0:09:29]} Kg7 {[%emt 0:10:01]} 28. Rb1 {[%emt 0:06:20]} Nd4 {[%emt 0:01:29]} 29. Bd3 {[%emt 0:01:06]} Rxb4 {[%emt 0:03:34]} 30. Ne2 {[%emt 0:00:25] aiming for Nxd4.} Nc6 {[%emt 0:00:42]} 31. Be4 {[%emt 0:04:57]} Be6 {[%emt 0:00:41]} 32. Rxb4 {[%emt 0:00:19]} Nxb4 {[%emt 0:00:08] Weighted Error Value: White=0.10 (very precise) /Black=0.12 (very precise)} 1/2-1/2

[Event "Oceania Zonal Open 2023"]
[Site "Melbourne"]
[Date "2023.01.26"]
[Round "5.10"]
[White "Zhang, Kendrick Botong"]
[Black "Urban, Sylvester"]
[Result "1/2-1/2"]
[ECO "B56"]
[WhiteElo "1889"]
[BlackElo "2117"]
[Annotator "TA"]
[PlyCount "64"]
[EventDate "2023.01.09"]
[EventType "swiss"]
[EventCountry "AUS"]
[SourceTitle "playchess.com"]
[Source "ChessBase"]
[SourceQuality "1"]
[TimeControl "5400+30"]

{[%evp 14,64,16,14,14,16,16,24,16,22,25,8,24,0,0,0,0,-8,5,0,0,0,5,0,0,0,0,0,0,-12,0,0,0,0,0,0,0,0,0,0,0,0,0,0,0,0,0,0,0,0,0,0,0]} 1. e4 {[%emt 0:00:38]} c5 {[%emt 0:00:01]} 2. Nf3 {[%emt 0:00:11]} d6 {[%emt 0:00:04]} 3. d4 {[%emt 0:00:15]} cxd4 {[%emt 0:00:05]} 4. Nxd4 {[%emt 0:00:08]} Nf6 {[%emt 0:00:02]} 5. Nc3 {[%emt 0:00:11]} Nc6 {[%emt 0:00:09]} 6. f3 {[%emt 0:00:41]} e5 {[%emt 0:00:40]} 7. Nb3 {[%emt 0:00:08]} Be6 {[%emt 0:00:18]} 8. Be3 {[%emt 0:00:21]} d5 {[%emt 0:00:58] B56: Classical Sicilian: Unusual Lines.} 9. exd5 {[%emt 0:13:34]} Nxd5 {[%emt 0:00:10]} 10. Nxd5 {[%emt 0:00:10]} Qxd5 {[%emt 0:00:04] White has an edge.} 11. Qxd5 {[%emt 0:03:12]} Bxd5 {[%emt 0:00:03]} 12. O-O-O {[%emt 0:01:49]} O-O-O $1 {[%emt 0:00:02]} 13. c4 {[%emt 0:05:51]} Be6 {[%emt 0:00:06] The position is equal.} 14. Rxd8+ {[%emt 0:00:24]} Kxd8 {[%emt 0:00:15]} 15. Nc5 {[%emt 0:07:32]} Bc8 {[%emt 0:00:22]} 16. Be2 {[%emt 0:09:03]} Kc7 {[%emt 0:03:32]} 17. Rd1 {[%emt 0:09:05]} Be7 {[%emt 0:09:04]} 18. Ne4 {[%emt 0:07:11]} Rd8 {[%emt 0:03:05]} 19. Nc3 {[%emt 0:04:08]} Rxd1+ {[%emt 0:00:53] [#]} 20. Bxd1 $146 {[%emt 0:01:04]} ({Predecessor:} 20. Kxd1 Bf8 21. a3 Be6 22. Kd2 b6 23. f4 {½-½ Csolto,T (2198)-Vyparina,M (2198) SVK-chT2C 10/11 2010 (3.6)}) 20... Be6 {[%emt 0:22:21]} 21. b3 {[%emt 0:03:47]} a6 {[%emt 0:06:20]} 22. Bc2 {[%emt 0:03:05]} g6 {[%emt 0:02:01]} 23. Be4 {[%emt 0:02:15]} Ba3+ {[%emt 0:05:02]} 24. Kd1 {[%emt 0:05:36]} f5 {[%emt 0:03:46]} 25. Bd5 {[%emt 0:00:59]} Bxd5 {[%emt 0:01:06]} 26. Nxd5+ $11 {[%emt 0:00:11][%mdl 4096] Endgame KBN-KBN} Kd6 {[%emt 0:00:25]} 27. Kd2 {[%emt 0:00:49]} Nb4 {[%emt 0:09:19]} 28. Nxb4 {[%emt 0:00:38]} Bxb4+ {[%emt 0:00:03]} 29. Kd3 {[%emt 0:00:13]} h5 {[%emt 0:03:31]} 30. Bc1 {[%emt 0:01:58]} Ke6 {[%emt 0:02:52]} 31. Bb2 {[%emt 0:01:45]} g5 {[%emt 0:00:55]} 32. h3 {[%emt 0:00:25]} Bc5 {[%emt 0:02:17] Not much happened in this game.   Weighted Error Value: White=0.03 (flawless) /Black=0.02 (flawless)} 1/2-1/2

[Event "Oceania Zonal Open 2023"]
[Site "Melbourne"]
[Date "2023.01.26"]
[Round "5.11"]
[White "Cannon, David"]
[Black "Park-Tamati, Philli"]
[Result "1-0"]
[ECO "E11"]
[WhiteElo "2112"]
[BlackElo "1868"]
[Annotator "TA"]
[PlyCount "87"]
[EventDate "2023.01.09"]
[EventType "swiss"]
[EventCountry "AUS"]
[SourceTitle "playchess.com"]
[Source "ChessBase"]
[SourceQuality "1"]
[TimeControl "5400+30"]

{[%evp 17,87,46,33,11,27,26,31,21,25,31,31,21,43,43,39,39,41,40,62,75,75,63,72,58,59,38,44,58,44,0,116,59,118,66,159,147,157,158,159,147,128,120,236,243,287,128,543,459,1416,1410,1260,856,890,883,867,867,867,839,860,841,826,777,29982,29983,29983,29984,29982,29984,29989,29985,29992,29986]} 1. d4 {[%emt 0:00:11]} Nf6 {[%emt 0:00:11]} 2. c4 {[%emt 0:00:14]} e6 {[%emt 0:00:14]} 3. g3 {[%emt 0:00:00]} Bb4+ {[%emt 0:00:04]} 4. Bd2 {[%emt 0:00:00]} a5 {[%emt 0:00:06]} 5. Bg2 {[%emt 0:00:16]} d6 {[%emt 0:00:34]} 6. Nf3 {[%emt 0:03:06]} Nbd7 {[%emt 0:00:09]} 7. O-O {[%emt 0:01:01]} e5 {[%emt 0:00:10]} 8. Nc3 {[%emt 0:06:00]} exd4 {[%emt 0:02:13]} 9. Nxd4 {[%emt 0:00:21]} O-O {[%emt 0:00:18]} 10. Nd5 {[%emt 0:02:52] E11: Bogo-Indian.} Bxd2 {[%emt 0:01:42]} (10... Bc5 $5 11. Nb3 Nxd5 12. Nxc5 (12. Bxd5 Bb6 $11) 12... Nxc5 13. cxd5 f5 $11) 11. Qxd2 {[%emt 0:00:12]} Nc5 {[%emt 0:11:21] [#]} 12. Rfd1 $146 {[%emt 0:04:43] White is slightly better.} ({Predecessor:} 12. Qg5 Nxd5 13. Qxd8 Rxd8 14. cxd5 Bd7 15. b3 b5 16. Rfc1 b4 17. a4 bxa3 18. Rxa3 {½-½ Tan,Z (2466)-Navara,D (2710) Reykjavik op 2013 (5)}) 12... Re8 {[%emt 0:03:25]} 13. Qc2 {[%emt 0:03:38]} Bd7 {[%emt 0:07:44]} 14. b3 {[%emt 0:01:09]} Re5 {[%emt 0:04:36]} 15. a3 {[%emt 0:05:17]} h6 {[%emt 0:01:36]} 16. Nc3 {[%emt 0:05:34]} Qe8 {[%emt 0:10:04]} 17. Re1 {[%emt 0:08:21]} Nce4 {[%emt 0:04:46]} 18. f4 {[%emt 0:07:13]} Re7 {[%emt 0:02:32] [#]} 19. Bxe4 {[%emt 0:04:47][%mdl 64] Deflection} Nxe4 {[%emt 0:10:43]} 20. Nd5 $36 {[%emt 0:00:16][%csl LRc7,LRe7][%cal Od5c7][%mdl 2048] Black is under pressure.} c5 {[%emt 0:01:14]} 21. Nf3 {[%emt 0:07:21] Excellent horsemanship.} Bc6 $1 {[%emt 0:00:46] Threatens to win with ...Bxd5.} 22. Nxe7+ {[%emt 0:00:24]} Qxe7 {[%emt 0:00:08]} 23. b4 {[%emt 0:03:59]} b6 {[%emt 0:02:08]} (23... axb4 $11 24. axb4 Rxa1 25. Rxa1 cxb4) 24. Qb3 {[%emt 0:06:30]} (24. bxc5 $16 Nxc5 25. Qc3) 24... g5 {[%emt 0:06:40]} ({Black should try} 24... Re8 $14) 25. Qe3 {[%emt 0:06:44]} ({Better is} 25. fxg5 $16 hxg5 26. Rab1) 25... Qf6 {[%emt 0:04:49]} (25... gxf4 $1 $14 26. Qxf4 axb4) 26. bxc5 {[%emt 0:01:58]} bxc5 {[%emt 0:00:20] [#]} 27. fxg5 $1 {[%emt 0:07:42]} hxg5 {[%emt 0:00:15] ...g4 is the strong threat.} 28. Rf1 {[%emt 0:02:27]} Re8 {[%emt 0:01:05][%cal Oe4g3]} 29. Nh4 {[%emt 0:01:48]} Qh6 {[%emt 0:18:48]} (29... Qc3 $16 30. Qxc3 Nxc3) 30. Nf5 $18 {[%emt 0:01:52]} Qh5 {[%emt 0:00:24]} 31. Qf3 {[%emt 0:03:37]} (31. Rab1 $18) 31... Qh8 $2 {[%emt 0:02:49][%mdl 8192] A mistake that costs the game.} (31... g4 $16 32. Qxg4+ {[%mdl 64] Decoy} Qxg4 33. Nh6+ {[%mdl 64] Discovered Attack, Double Attack} Kg7 34. Nxg4 Nd2) 32. Rad1 {[%emt 0:01:41][%cal Of5d4] Hoping for Nd4!} Ba8 {[%emt 0:01:12] [#]} (32... Qh3 $142 33. g4 (33. Nxd6 Nxd6 34. Qxc6 Rxe2 $16) (33. Ne3 Nxg3 34. Qxg3 Qxg3+ {[%mdl 64] Remove Defender} 35. hxg3 Rxe3 $18) 33... Qxf3 34. exf3 Nc3 35. Rxd6 Ba4) 33. Nh6+ $1 {[%emt 0:01:13][%mdl 576] Discovered Attack, Double Attack} Kg7 {[%emt 0:01:08]} 34. Qxf7+ {[%emt 0:01:06]} Kxh6 {[%emt 0:00:01] [#]} 35. Rxd6+ $3 {[%emt 0:00:11][%mdl 576] Decoy} Nxd6 {[%emt 0:00:16]} 36. Rf6+ {[%emt 0:00:06]} Qxf6 {[%emt 0:00:07]} 37. Qxf6+ {[%emt 0:00:05]} Kh5 {[%emt 0:00:25]} 38. Qxd6 {[%emt 0:00:17] aiming for g4+.} Rxe2 {[%emt 0:00:16]} 39. Qxc5 {[%emt 0:01:18] KQ-KRB} Bg2 {[%emt 0:01:27]} 40. h4 {[%emt 0:00:29][%csl Gh4][%cal Rc5g5,Bh2h4,Bh4h5][%mdl 32] White mates.} Kg4 {[%emt 0:00:13]} 41. Qxg5+ {[%emt 0:01:26]} Kh3 {[%emt 0:00:01]} 42. h5 {[%emt 0:01:10][%csl Gg3][%cal Rg5h4]} Re4 {[%emt 0:03:19]} 43. Qf5+ {[%emt 0:00:09]} Rg4 {[%emt 0:00:23] [#]} 44. Qxg4+ $3 {[%emt 0:00:18][%mdl 512] A superb game by Cannon.   Weighted Error Value: White=0.22 (precise) /Black=0.66} 1-0

[Event "Oceania Zonal Open 2023"]
[Site "Melbourne"]
[Date "2023.01.25"]
[Round "5.11"]
[White "Dai, Cheng"]
[Black "Jordan, William"]
[Result "1/2-1/2"]
[ECO "D79"]
[WhiteElo "1972"]
[BlackElo "2181"]
[Annotator "TA"]
[PlyCount "86"]
[EventDate "2023.01.09"]
[EventType "swiss"]
[EventCountry "AUS"]
[SourceTitle "playchess.com"]
[Source "ChessBase"]
[SourceQuality "1"]
[TimeControl "5400+30"]

{[%evp 22,86,0,0,8,2,0,0,0,0,0,0,8,0,0,0,23,6,7,6,43,32,88,8,38,42,41,6,6,6,85,12,103,21,19,5,5,0,0,0,0,-47,-17,-40,-40,-48,-40,-40,-40,-104,-104,-104,-104,-104,-104,-258,-236,-280,-278,-268,-247,-243,-175,-184,-78,-322,-317]} 1. d4 {[%emt 0:00:02]} Nf6 {[%emt 0:00:07]} 2. c4 {[%emt 0:00:09]} g6 {[%emt 0:00:30]} 3. Nf3 {[%emt 0:00:06]} Bg7 {[%emt 0:00:15]} 4. g3 {[%emt 0:00:07]} O-O {[%emt 0:00:36]} 5. Bg2 {[%emt 0:00:14]} c6 {[%emt 0:07:19]} 6. Nc3 {[%emt 0:01:51]} d5 {[%emt 0:00:38]} 7. cxd5 {[%emt 0:01:36]} cxd5 {[%emt 0:00:16]} 8. O-O {[%emt 0:01:17]} Ne4 {[%emt 0:00:43]} 9. Qb3 {[%emt 0:01:48]} Nxc3 {[%emt 0:00:31]} 10. bxc3 {[%emt 0:00:29]} Nc6 {[%emt 0:00:29]} 11. Nd2 {[%emt 0:02:37]} e6 {[%emt 0:04:13]} 12. e4 $1 {[%emt 0:04:49] 12.e4 scores better than 12.Ba3.} Na5 {[%emt 0:02:49] D79: Fianchetto Grünfeld: Symmetrical Variation (6 0-0 c6 7 cxd5 cxd5).} 13. Qc2 {[%emt 0:01:19]} Qc7 {[%emt 0:05:52]} 14. Qd3 {[%emt 0:07:29]} Rd8 {[%emt 0:07:39] [#] The position is equal.} 15. e5 $146 {[%emt 0:03:12]} ({Predecessor:} 15. Re1 h6 16. e5 Bd7 17. Ba3 Rac8 18. Bb4 Nc4 19. Nf1 Bb5 20. a4 Ba6 21. Qb1 {0-1 Bolado Saez,S (2366)-Fernandez Barrera,V (2204) Albacete op 15th 2007 (8)}) 15... Bd7 {[%emt 0:00:31]} 16. Ba3 {[%emt 0:03:58]} Ba4 {[%emt 0:03:37]} 17. Rfc1 {[%emt 0:03:39]} Rac8 {[%emt 0:01:30]} 18. Rab1 {[%emt 0:06:15]} h5 {[%emt 0:05:15]} 19. Bd6 {[%emt 0:13:43]} Qd7 {[%emt 0:00:41]} 20. Bf1 {[%emt 0:08:26]} a6 {[%emt 0:03:40]} 21. Qe3 {[%emt 0:05:23]} Kh7 {[%emt 0:03:39]} ({Better is} 21... Bb5 $14) 22. Nb3 {[%emt 0:03:54]} (22. c4 $16) 22... Nxb3 {[%emt 0:14:28]} (22... Nc4 $2 23. Bxc4 Rxc4 24. Nc5 Rxc5 25. Bxc5 $18) 23. axb3 {[%emt 0:00:06]} Bc6 {[%emt 0:00:07] Black is weak on the dark squares} 24. Ra1 {[%emt 0:04:44]} Bh6 {[%emt 0:00:55]} 25. f4 {[%emt 0:00:20]} Rg8 {[%emt 0:00:15]} (25... Bf8 $11) 26. Bd3 {[%emt 0:01:11]} ({White should try} 26. c4 $16) 26... Qd8 {[%emt 0:05:14]} (26... Bf8 $11 {keeps the balance.}) 27. h4 {[%emt 0:03:00] White is more active.} (27. c4 $1 $16) 27... Bf8 $11 {[%emt 0:06:58]} 28. Bxf8 {[%emt 0:00:23]} Rxf8 {[%emt 0:00:10]} 29. b4 {[%emt 0:01:40]} Kg7 {[%emt 0:01:37]} 30. Rc2 {[%emt 0:02:12]} Qd7 {[%emt 0:01:53]} 31. Rf1 {[%emt 0:06:22]} (31. Rca2 $11) 31... Rh8 {[%emt 0:08:16]} (31... Ba4 $5 {[%cal Ra4c2]} 32. Rcc1 Rc6 $15) 32. Rcf2 {[%emt 0:05:55][%cal Of4f5] aiming for f5!} Bb5 {[%emt 0:00:37]} 33. Bxb5 {[%emt 0:02:43]} axb5 {[%emt 0:06:57][%cal Ba6b5,Bb5a4,Ba4a3][%mdl 32]} 34. Ra1 {[%emt 0:01:09]} Ra8 {[%emt 0:00:15]} 35. Rfa2 {[%emt 0:00:32] [#]} (35. Rxa8 $15 Rxa8 36. Qc1) 35... Ra4 $1 $17 {[%emt 0:00:12]} 36. Qd3 {[%emt 0:02:34]} Rha8 {[%emt 0:00:36]} 37. Rxa4 {[%emt 0:00:10]} bxa4 {[%emt 0:00:35][%mdl 4096] Endgame KQR-KQR} 38. b5 $2 {[%emt 0:00:50]} (38. Ra3 $17) 38... a3 $19 {[%emt 0:00:46]} 39. Qb1 {[%emt 0:00:59]} Qc7 {[%emt 0:01:37]} 40. Qb3 {[%emt 0:01:31]} Qa5 {[%emt 0:00:07]} 41. Ra2 {[%emt 0:00:18]} Kf8 {[%emt 0:02:01]} 42. Kf2 {[%emt 0:00:06] [#]} Ke8 {[%emt 0:01:01]} (42... Qa4 $1 $19 {[%cal Ra4b3] has better winning chances.} 43. Qxa4 Rxa4) 43. Ke3 $2 {[%emt 0:00:16]} (43. c4 $17 {was the only chance.}) 43... Kd7 {[%emt 0:00:30][%mdl 32768] Weighted Error Value: White=0.37/Black=0.23 (precise) . An unexpected result.} 1/2-1/2

[Event "Oceania Zonal Open 2023"]
[Site "Melbourne"]
[Date "2023.01.25"]
[Round "5.12"]
[White "McGowan, Cameron"]
[Black "Zafirakos, Jesse"]
[Result "1/2-1/2"]
[ECO "C54"]
[WhiteElo "2175"]
[BlackElo "1902"]
[Annotator "TA"]
[PlyCount "110"]
[EventDate "2023.01.09"]
[EventType "swiss"]
[EventCountry "AUS"]
[SourceTitle "playchess.com"]
[Source "ChessBase"]
[SourceQuality "1"]
[TimeControl "5400+30"]

{[%evp 12,110,20,17,24,24,12,5,28,10,22,22,22,14,22,0,35,20,33,19,25,22,35,39,35,34,43,45,53,41,49,53,67,66,63,71,96,69,58,68,84,81,94,36,39,53,89,86,103,95,136,75,89,70,86,51,84,57,89,85,183,103,106,103,105,103,130,130,130,114,130,130,130,130,130,130,130,130,130,0,130,130,130,130,130,130,227,0,130,130,247,130,222,0,228,130,147,130,130,0,135]} 1. e4 {[%emt 0:00:02]} e5 {[%emt 0:00:07]} 2. Nf3 {[%emt 0:00:18]} Nc6 {[%emt 0:00:19]} 3. Bc4 {[%emt 0:00:04]} Bc5 {[%emt 0:00:06]} 4. O-O {[%emt 0:00:06]} Nf6 {[%emt 0:00:02]} 5. d3 {[%emt 0:00:03]} O-O {[%emt 0:00:34]} 6. c3 {[%emt 0:00:14]} d6 {[%emt 0:00:16]} 7. Re1 {[%emt 0:00:38]} (7. b4 $5 Bb6 $8 8. Nbd2 $11) 7... a6 {[%emt 0:00:47] C54: Giuoco Piano: 4 c3 Nf6, main lines with 5 d4 and 5 d3.} 8. a4 {[%emt 0:00:04]} h6 {[%emt 0:00:42]} 9. Nbd2 {[%emt 0:02:09]} Ba7 {[%emt 0:01:29]} 10. h3 {[%emt 0:04:03]} Be6 {[%emt 0:01:06]} 11. Bxe6 {[%emt 0:00:20]} fxe6 {[%emt 0:00:02]} 12. b4 {[%emt 0:00:08]} Nh5 {[%emt 0:02:14]} 13. Nc4 {[%emt 0:04:51]} Ne7 {[%emt 0:12:25]} (13... Bxf2+ $5 14. Kxf2 Qh4+ 15. Kf1 Rxf3+ 16. gxf3 (16. Qxf3 Rf8 $15) 16... Qxh3+ 17. Kg1 Qg3+ 18. Kh1 Qh3+ 19. Kg1 Qg3+ 20. Kh1 Qh3+ 21. Kg1 $11) 14. Ra2 {[%emt 0:10:46][%cal Of3g5] [#]} Nf4 $146 {[%emt 0:01:32]} ({Predecessor:} 14... Qe8 15. Be3 Bxe3 16. fxe3 Nf6 17. a5 Nc6 18. Rf1 d5 19. Ncd2 Qd7 20. Qb1 b6 21. axb6 cxb6 22. Qb3 dxe4 23. dxe4 Rfe8 24. Qc4 b5 25. Qe2 Qb7 26. Rfa1 {½-½ Kotzev,M (2372)-Jotov,H (2258) BUL-chT21 email 2019 [3]}) 15. Kh2 {[%emt 0:09:27]} Qe8 {[%emt 0:05:53]} 16. g3 {[%emt 0:07:20]} Nfg6 {[%emt 0:02:39]} 17. Be3 {[%emt 0:01:59]} (17. Kg2 {feels hotter.} b5 18. Ncd2 Bb6 19. a5) 17... Bxe3 {[%emt 0:01:12]} 18. Rxe3 {[%emt 0:03:49]} Qd7 {[%emt 0:05:20]} 19. Kg2 {[%emt 0:04:56]} Rae8 {[%emt 0:02:13]} 20. Qb3 {[%emt 0:03:33]} Kh7 {[%emt 0:02:00]} 21. b5 {[%emt 0:01:50]} axb5 {[%emt 0:01:59]} 22. axb5 {[%emt 0:03:00]} b6 {[%emt 0:01:55]} 23. Ra7 {[%emt 0:01:26] Hoping for Nxb6.} Rb8 {[%emt 0:02:04]} 24. Qa4 {[%emt 0:09:40]} Nc8 {[%emt 0:02:00]} 25. Ra6 {[%emt 0:01:00]} Qf7 {[%emt 0:01:20]} 26. Qc2 {[%emt 0:02:12]} Qd7 {[%emt 0:01:54]} 27. Na3 {[%emt 0:02:10]} (27. Qb1 $16) 27... Nce7 {[%emt 0:03:31]} 28. d4 {[%emt 0:07:49]} exd4 {[%emt 0:01:29]} 29. cxd4 {[%emt 0:00:03]} Rb7 {[%emt 0:03:04] Wards off Ra7} 30. Rc3 {[%emt 0:00:42]} e5 {[%emt 0:01:51]} 31. d5 {[%emt 0:00:49]} (31. dxe5 $142 dxe5 32. Rd3) 31... Ng8 {[%emt 0:03:06]} 32. Ra4 {[%emt 0:01:24]} Nf6 {[%emt 0:00:49]} 33. Ne1 {[%emt 0:00:06]} Kh8 {[%emt 0:02:13]} 34. Nd3 {[%emt 0:01:18]} Rc8 {[%emt 0:00:53]} 35. Nb4 {[%emt 0:00:35]} Ne8 {[%emt 0:00:22]} (35... Nf8 $16 {is a better defense.}) 36. Na6 {[%emt 0:00:36] Black is weak on the light squares} (36. Nc4 $18) 36... Kh7 {[%emt 0:04:12]} 37. Rac4 {[%emt 0:00:57]} Ra8 {[%emt 0:00:32]} 38. Qc1 {[%emt 0:03:12]} ({Much weaker is} 38. Nxc7 $6 Rxa3 39. Rxa3 Nxc7 $11) 38... Qf7 {[%emt 0:01:14]} 39. Nc2 {[%emt 0:01:18][%cal Ba3c2,Bc2e3,Be3f5][%mdl 32]} ({Much worse is} 39. Nxc7 $6 Rxa3 40. Rxa3 Nxc7 $11) 39... Qd7 {[%emt 0:00:58]} 40. Qb1 {[%emt 0:00:07]} Kh8 {[%emt 0:01:38]} 41. Ne3 {[%emt 0:00:09]} Kh7 {[%emt 0:00:14]} 42. Kh2 {[%emt 0:01:40]} Raa7 {[%emt 0:01:00]} 43. Nf5 {[%emt 0:00:54]} Nf6 {[%emt 0:01:08]} 44. Rc1 {[%emt 0:02:59]} Ne8 {[%emt 0:01:15]} 45. R1c3 {[%emt 0:00:32]} (45. Kg2 $16) 45... Ra8 {[%emt 0:00:37]} (45... Nf6 $11) 46. Rc6 {[%emt 0:00:38]} Raa7 {[%emt 0:01:34]} 47. Qc2 {[%emt 0:01:01]} Qf7 {[%emt 0:03:04]} 48. Qc1 {[%emt 0:02:22] White is much more active.} Nf6 {[%emt 0:04:44]} (48... Qd7 $16 49. Qd1 Qd8) 49. Qc2 {[%emt 0:01:28]} (49. Nxc7 $2 {is the wrong capture.} Nxe4 50. Rf3 Rxc7 $19) (49. Rxc7 $18 Rxc7 50. Rxc7 Rxc7 51. Qxc7 Qxc7 52. Nxc7) 49... Ne8 $1 $16 {[%emt 0:01:31]} 50. Kg2 {[%emt 0:00:01]} Kh8 {[%emt 0:01:15] [#]} (50... Qd7 $16 {was worth a try.} 51. h4 Kh8) 51. Qc1 {[%emt 0:02:33]} ({Only move:} 51. Nxc7 $1 $18 Rxc7 52. Nxd6 Nxd6 53. Rxc7 Rxc7 54. Rxc7) 51... Nf6 {[%emt 0:02:06]} (51... Qd7 $16 52. f3 Kh7) 52. Qc2 {[%emt 0:01:57]} Ne8 {[%emt 0:01:57] [#]} 53. Rf3 {[%emt 0:01:03]} (53. Nxc7 $1 $18 Rxc7 54. Nxd6 Nxd6 55. Rxc7 Rxc7 56. Rxc7) 53... Nf6 {[%emt 0:00:59]} 54. Qc4 {[%emt 0:01:22]} Kh7 {[%emt 0:00:50]} 55. Qc2 {[%emt 0:01:00]} Kh8 $1 {[%emt 0:00:15] Weighted Error Value: White=0.29 (precise) /Black=0.21 (precise)} 1/2-1/2